bitfinex/quotes_ETHUSD_20251218
["timestamp","ask_amount","ask_price","bid_price","bid_amount"]
[1766072371800,3.3341152,2999.3,2997.2,0.10157612]
[1766072371978,0.46438023,2999.2,2997.4,0.10157612]
[1766072372179,4.1663,2999.0,2997.5,0.575]
[1766072372405,4.1663,2999.0,2997.5,3.91108728]
[1766072372621,6.66630205,3000.2,2998.2,3.33525999]
[1766072372785,0.46438023,3000.0,2998.3,0.575]
[1766072372988,0.46438023,2999.8,2998.3,0.575]
[1766072373175,0.46438023,2999.7,2998.4,0.39102951]
[1766072373374,0.575,3000.3,2998.4,0.39102951]
[1766072373375,3.33304163,3000.3,2998.4,0.49260563]
[1766072373576,3.33322222,3000.1,2998.4,0.49260563]
[1766072373816,0.46438023,3000.0,2998.5,0.575]
[1766072373977,2.7343,2999.8,2998.6,0.575]
[1766072374184,2.7343,2999.1,2997.6,0.10157612]
[1766072374401,0.575,2999.7,2997.3,3.33628456]
[1766072374577,0.575,2999.7,2997.2,3.33639532]
[1766072374578,0.46438023,2999.3,2997.2,3.33639532]
[1766072374780,2.7343,2998.7,2997.3,0.33363953]
[1766072374985,2.7343,2998.1,2996.3,0.10157612]
[1766072375217,2.7343,2998.2,2995.5,0.10157612]
[1766072375520,0.56595635,2997.9,2995.5,0.10157612]
[1766072375733,0.56595635,2997.9,2995.1,0.10157612]
[1766072375734,0.46438023,2997.2,2995.6,0.60838229]
[1766072375896,0.46438023,2997.3,2995.6,0.575]
[1766072376225,4.1663,2997.3,2995.9,0.10157612]
[1766072376434,0.575,2998.6,2996.3,0.10157612]
[1766072376584,0.46438023,2998.8,2996.3,0.85706382]
[1766072376796,0.46438023,2998.5,2996.4,0.575]
[1766072377004,0.46438023,2998.3,2996.3,0.85706382]
[1766072377204,0.46438023,2998.8,2996.4,0.575]
[1766072377638,0.405504,2998.5,2996.3,0.85706382]
[1766072377932,0.405504,2998.5,2995.6,7.35172477]
[1766072377933,1.432,2997.7,2995.6,7.35172477]
[1766072378140,1.432,2997.5,2996.4,0.575]
[1766072378296,0.86988423,2998.3,2994.7,3.33919747]
[1766072378491,2.7343,2997.8,2996.3,0.001]
[1766072378692,2.7343,2997.2,2996.3,0.576]
[1766072378912,4.1663,2997.2,2996.3,0.576]
[1766072379113,0.46438023,2997.8,2996.3,0.576]
[1766072379324,0.50708012,2998.5,2996.3,0.576]
[1766072379325,4.1663,2997.9,2996.3,0.576]
[1766072379526,6.66977922,2998.6,2996.3,3.91343441]
[1766072379711,4.99761328,2998.4,2996.5,6.67445352]
[1766072379911,2.7343,2998.1,2996.5,3.33722676]
[1766072380110,2.7343,2998.1,2996.4,0.39134344]
[1766072380329,2.7343,2998.2,2996.4,3.72863412]
[1766072380515,2.7343,2998.2,2996.3,0.001]
[1766072380694,2.7343,2998.2,2996.0,3.33776759]
[1766072380900,2.7343,2998.2,2996.3,3.3374036]
[1766072381096,2.7343,2998.2,2996.1,0.574]
[1766072381302,2.7343,2998.2,2996.4,3.33729395]
[1766072381503,2.7343,2998.0,2996.5,0.33372939]
[1766072381799,1.432,2997.7,2996.6,3.33711539]
[1766072381997,2.7343,2997.6,2996.7,0.574]
[1766072382198,1.432,2997.8,2996.7,0.67557612]
[1766072382398,1.432,2997.8,2996.8,0.29938134]
[1766072383004,1.432,2997.8,2996.9,0.573]
[1766072383200,2.843,2998.1,2996.9,0.573]
[1766072383400,1.6039,2998.3,2996.7,0.10157612]
[1766072383602,2.843,2998.2,2996.8,3.90980117]
[1766072383815,3.33493018,2998.6,2996.8,3.90980117]
[1766072383816,0.573,2999.0,2996.8,3.90980117]
[1766072384028,2.843,2998.2,2996.8,3.33680117]
[1766072384230,0.46438023,2998.6,2996.5,0.33372939]
[1766072384432,4.4469,2998.5,2996.8,3.33689191]
[1766072384602,0.46438023,2998.7,2996.8,3.33689191]
[1766072384809,2.843,2998.0,2996.9,0.573]
[1766072385118,10.00377236,2998.9,2997.0,0.573]
[1766072385119,1.6039,2997.5,2997.0,0.573]
[1766072385704,1.6039,2998.2,2997.1,10.00967601]
[1766072386037,1.6039,2998.2,2997.2,1.0582676]
[1766072386541,1.6039,2998.2,2997.3,0.572]
[1766072386848,1.6039,2998.2,2997.2,1.0582676]
[1766072387153,1.6039,2999.1,2997.2,1.0582676]
[1766072387316,0.46438023,2999.0,2997.3,0.572]
[1766072387514,0.46438023,2999.0,2997.2,1.0582676]
[1766072387515,1.6039,2998.9,2997.2,1.0582676]
[1766072387723,2.843,2998.6,2997.5,3.33611342]
[1766072387933,0.10157612,2999.9,2997.5,3.33611342]
[1766072387934,1.6059,2998.8,2997.5,10.10991638]
[1766072388215,0.002,2998.8,2997.5,10.10991638]
[1766072388442,0.002,2998.8,2997.6,0.572]
[1766072388610,0.002,2998.8,2997.7,1.3065803]
[1766072388808,0.002,2998.8,2997.8,0.572]
[1766072389010,0.46438023,2998.6,2997.3,3.33627675]
[1766072389235,2.843,2998.4,2997.4,0.572]
[1766072389403,1.6039,2998.5,2997.2,3.33640308]
[1766072389614,2.843,2998.0,2997.3,0.572]
[1766072389820,4.4469,2997.9,2997.3,0.96284247]
[1766072390017,4.4469,2997.9,2997.3,3.90830899]
[1766072390240,4.4469,2997.9,2996.8,3.43843173]
[1766072390241,4.4469,2997.9,2997.0,3.33658114]
[1766072390455,3.3347852,2998.7,2996.8,0.10157612]
[1766072390456,0.46438023,2998.6,2996.8,0.10157612]
[1766072390740,4.4469,2998.1,2997.3,3.33626041]
[1766072390951,0.002,2998.8,2997.3,3.33626041]
[1766072391123,2.843,2998.7,2997.4,0.33362604]
[1766072391440,4.4469,2998.7,2997.5,0.571]
[1766072391867,4.4469,2998.7,2997.6,6.67200426]
[1766072392026,0.002,2998.8,2997.7,0.10157612]
[1766072392347,0.002,2998.8,2997.9,0.10157612]
[1766072392541,0.002,2998.8,2998.1,0.10157612]
[1766072392742,0.002,2998.8,2998.2,0.571]
[1766072392949,0.002,2998.8,2998.1,0.10157612]
[1766072393460,0.002,2998.8,2997.5,6.67218614]
[1766072393627,4.4469,2998.6,2997.9,0.571]
[1766072393826,3.33667052,2998.8,2997.3,3.33625063]
[1766072394030,3.33667052,2998.8,2997.4,0.571]
[1766072394220,2.843,2998.4,2997.4,0.571]
[1766072394424,4.4469,2998.1,2997.4,0.571]
[1766072394621,2.843,2998.6,2997.0,0.10157612]
[1766072394868,4.4469,2997.9,2996.4,0.10157612]
[1766072395025,4.4469,2997.9,2996.8,0.10157612]
[1766072395223,2.843,2998.4,2996.8,0.10157612]
[1766072395477,1.6039,2997.9,2996.8,0.10157612]
[1766072395689,2.843,2997.4,2996.6,0.10157612]
[1766072395977,4.4469,2997.4,2996.8,0.57]
[1766072396168,4.4469,2998.3,2996.6,3.33711539]
[1766072396355,2.843,2998.1,2996.7,0.57]
[1766072396556,0.33073802,2998.5,2996.7,0.57]
[1766072396777,4.4469,2998.1,2996.7,0.67157612]
[1766072397086,1.6039,2998.1,2996.7,0.67157612]
[1766072397249,2.843,2997.8,2996.7,0.67157612]
[1766072397844,2.843,2997.8,2996.8,6.67378536]
[1766072398185,1.6039,2997.7,2996.8,3.33689268]
[1766072398388,1.6039,2997.7,2996.9,0.40084688]
[1766072398683,4.4469,2997.5,2996.3,3.33836249]
[1766072398844,3.33579851,2997.8,2996.4,0.57]
[1766072399048,0.46438023,2997.7,2996.3,0.001]
[1766072399550,0.46438023,2997.7,2996.4,0.569]
[1766072399760,0.46438023,2997.5,2996.4,0.569]
[1766072400103,0.46438023,2997.5,2996.5,0.569]
[1766072400104,1.6039,2997.1,2996.5,0.569]
[1766072400387,3.33578917,2997.8,2996.3,0.001]
[1766072400388,0.569,2998.6,2996.4,3.33733813]
[1766072400592,2.8296,2997.7,2996.5,0.569]
[1766072400886,2.8296,2997.7,2996.6,0.39063381]
[1766072400887,4.376,2997.7,2996.6,0.39063381]
[1766072401062,0.569,2998.6,2996.7,0.67157612]
[1766072401245,2.8296,2998.3,2996.9,0.10157612]
[1766072401450,1.5464,2997.8,2997.0,0.569]
[1766072401703,2.8296,2998.2,2997.1,0.569]
[1766072401845,2.8296,2997.6,2996.3,0.001]
[1766072402046,1.5464,2996.9,2996.3,0.001]
[1766072402290,0.569,2997.6,2996.3,0.001]
[1766072402587,2.8296,2997.5,2996.3,0.001]
[1766072402881,0.569,2997.6,2996.3,0.57]
[1766072403096,0.46438023,2997.4,2996.3,0.57]
[1766072403454,4.376,2997.3,2996.3,0.001]
[1766072403688,4.376,2997.5,2996.4,0.569]
[1766072403988,0.46438023,2997.4,2996.4,0.569]
[1766072404197,4.376,2997.2,2996.4,3.90626272]
[1766072404493,0.569,2998.0,2996.4,7.24360085]
[1766072404659,10.69730025,2998.8,2996.4,7.24360085]
[1766072404660,2.8296,2997.9,2996.4,7.24360085]
[1766072404846,2.8296,2997.9,2996.5,0.72446009]
[1766072405051,2.8296,2997.9,2996.6,0.03337115]
[1766072405274,2.8296,2997.9,2996.6,0.569]
[1766072405478,2.8296,2997.9,2996.7,0.67057612]
[1766072405661,2.8296,2997.9,2996.8,0.568]
[1766072405872,2.8296,2997.9,2996.9,0.568]
[1766072406083,2.8296,2997.9,2996.5,0.72446009]
[1766072406084,3.11256,2997.9,2996.5,0.72446009]
[1766072406257,2.8296,2997.8,2996.3,0.001]
[1766072406458,2.8296,2997.6,2996.4,0.568]
[1766072406658,4.376,2997.3,2996.4,3.90533304]
[1766072406886,0.46438023,2997.8,2996.3,0.001]
[1766072407137,3.29398023,2997.6,2996.3,0.001]
[1766072407304,2.8296,2996.9,2995.9,0.568]
[1766072407480,4.376,2996.8,2996.0,0.568]
[1766072407821,4.376,2997.2,2996.0,0.568]
[1766072408043,3.33626093,2997.4,2996.1,0.568]
[1766072408044,2.8296,2997.1,2996.1,0.568]
[1766072408182,0.46438023,2997.4,2996.0,0.568]
[1766072408183,2.8296,2997.3,2996.0,0.568]
[1766072408382,4.376,2996.8,2996.0,0.568]
[1766072408694,0.46438023,2997.0,2995.7,0.568]
[1766072409024,0.46438023,2997.0,2995.4,3.33841796]
[1766072409025,1.5464,2996.9,2995.4,3.33838207]
[1766072409198,2.8296,2996.2,2995.2,3.44017376]
[1766072409405,4.376,2996.2,2995.3,3.90652258]
[1766072409589,2.8296,2995.9,2995.1,0.001]
[1766072409791,1.5464,2995.4,2994.3,6.67935744]
[1766072409992,2.8296,2995.9,2994.2,6.67958018]
[1766072410193,2.8296,2995.3,2993.9,0.001]
[1766072410403,1.5464,2995.2,2994.2,6.67955601]
[1766072410688,4.376,2995.2,2994.3,0.6679556]
[1766072411518,2.8296,2995.6,2994.0,3.33997302]
[1766072411686,2.8296,2995.0,2993.9,0.001]
[1766072411886,1.5464,2994.7,2993.9,0.001]
[1766072412094,4.376,2994.7,2993.9,0.001]
[1766072412283,0.567,2995.4,2994.0,0.567]
[1766072412479,0.567,2995.4,2994.1,0.567]
[1766072412679,2.9227,2994.7,2993.8,3.34023042]
[1766072412880,0.567,2994.9,2993.2,3.34085957]
[1766072413202,2.9227,2994.6,2993.3,3.90777187]
[1766072413409,4.3787,2994.3,2993.4,0.567]
[1766072413582,4.3787,2994.3,2993.0,3.34108671]
[1766072413783,4.3787,2994.3,2992.4,16.41797426]
[1766072413784,0.46438023,2994.5,2992.0,0.10157612]
[1766072413992,2.9227,2993.5,2992.0,3.34224598]
[1766072414363,1.456,2992.6,2991.8,0.567]
[1766072414493,0.567,2993.0,2991.9,0.001]
[1766072414691,1.456,2992.4,2991.3,0.567]
[1766072414904,2.9227,2992.5,2991.3,0.567]
[1766072415114,1.456,2992.4,2991.7,3.3425743]
[1766072415414,1.456,2992.4,2991.3,3.34301166]
[1766072415415,2.9227,2992.3,2991.3,3.34301166]
[1766072415717,1.03138023,2992.9,2991.4,0.33430117]
[1766072415718,4.9457,2992.9,2991.4,0.33430117]
[1766072416020,3.90824493,2992.9,2991.5,0.567]
[1766072416316,2.9227,2992.4,2991.6,0.03342692]
[1766072416481,2.9227,2992.8,2991.0,0.001]
[1766072416683,2.9227,2992.3,2991.0,0.001]
[1766072416992,2.9227,2991.3,2989.3,7.36155716]
[1766072417314,0.46438023,2992.5,2990.1,3.34434069]
[1766072417315,2.9227,2991.4,2990.1,3.34434069]
[1766072417531,1.456,2991.2,2990.6,3.34372529]
[1766072417685,0.567,2992.7,2990.8,10.03075309]
[1766072417999,0.567,2992.7,2991.0,6.68672684]
[1766072418220,2.9227,2992.0,2990.9,1.06238345]
[1766072418420,2.9227,2992.2,2990.9,3.34345414]
[1766072418621,2.9227,2992.0,2991.0,0.567]
[1766072418837,2.9227,2992.0,2990.9,6.68692934]
[1766072419044,2.9227,2992.6,2991.0,0.567]
[1766072419349,2.9227,2992.4,2990.9,6.68692934]
[1766072419499,0.567,2992.7,2991.0,0.66869293]
[1766072419696,2.9227,2992.2,2991.0,0.66869293]
[1766072419928,1.456,2991.7,2990.2,10.03273577]
[1766072420303,2.9227,2992.0,2990.2,3.34421997]
[1766072420504,2.9227,2991.4,2990.2,3.34421997]
[1766072420736,0.567,2992.2,2990.2,3.34421997]
[1766072420920,0.567,2992.2,2990.3,0.334422]
[1766072420921,1.456,2991.8,2990.3,0.334422]
[1766072421115,4.3787,2991.7,2990.3,0.334422]
[1766072421313,4.3787,2992.1,2991.0,0.001]
[1766072421628,0.567,2992.2,2991.0,0.568]
[1766072421830,1.456,2991.8,2991.0,0.001]
[1766072422051,4.3787,2991.6,2991.0,3.34434486]
[1766072422204,0.567,2992.2,2991.0,0.39213449]
[1766072422399,4.3787,2991.8,2991.0,7.0787632]
[1766072422624,0.567,2992.2,2991.0,3.73539978]
[1766072422824,0.567,2992.6,2991.0,7.0787632]
[1766072423038,4.3787,2992.5,2991.0,10.42212662]
[1766072423340,0.566,2992.8,2991.1,1.09891266]
[1766072423529,1.456,2992.5,2991.0,0.39213449]
[1766072423731,1.456,2991.9,2991.0,0.001]
[1766072423940,4.3787,2991.7,2991.0,0.001]
[1766072424605,1.456,2991.8,2991.0,0.001]
[1766072424805,1.456,2991.2,2990.1,3.34434041]
[1766072425036,0.566,2991.8,2990.1,3.34434041]
[1766072425244,0.566,2991.8,2990.3,3.34407742]
[1766072425407,0.566,2992.2,2990.7,3.34369879]
[1766072425618,2.9227,2991.8,2990.2,0.33443404]
[1766072425949,4.3787,2991.1,2990.2,0.566]
[1766072426250,0.46438023,2991.7,2989.9,0.001]
[1766072426251,0.46438023,2991.6,2989.9,0.001]
[1766072426554,2.9227,2991.5,2989.9,0.001]
[1766072426754,2.9227,2991.3,2989.9,0.001]
[1766072427050,4.3787,2991.9,2989.9,0.406504]
[1766072427249,4.3787,2991.6,2990.0,0.566]
[1766072427635,4.3787,2991.6,2990.1,0.405504]
[1766072427949,0.566,2991.6,2990.2,0.566]
[1766072428148,2.9227,2991.3,2990.2,0.566]
[1766072428353,4.3787,2991.5,2989.9,10.03478038]
[1766072428556,2.9227,2992.1,2990.3,9.42848967]
[1766072428758,4.3787,2991.9,2990.4,0.566]
[1766072429123,3.90754892,2992.7,2990.4,0.566]
[1766072429124,2.9227,2992.6,2990.4,0.566]
[1766072429324,1.456,2992.5,2990.3,8.86248967]
[1766072429653,1.456,2994.5,2992.0,8.86248967]
[1766072429842,3.33967872,2994.3,2992.2,6.68404518]
[1766072430036,1.456,2994.0,2992.3,0.566]
[1766072430220,1.456,2993.9,2992.2,6.68404518]
[1766072430426,1.456,2993.7,2992.3,1.65723747]
[1766072430731,0.2022,2993.8,2992.1,3.34210457]
[1766072430732,0.002,2992.5,2992.1,3.34210457]
[1766072430944,0.002,2992.5,2992.1,6.68423885]
[1766072431147,0.566,2993.3,2992.1,6.68423885]
[1766072431333,4.3787,2993.8,2992.1,13.36850741]
[1766072431521,4.3787,2993.8,2992.2,9.26799367]
[1766072431870,4.3787,2993.8,2992.4,10.02539766]
[1766072432159,4.3787,2993.8,2992.4,6.68359844]
[1766072432160,1.456,2993.8,2992.4,6.68359844]
[1766072432343,4.3787,2993.4,2992.5,0.565]
[1766072432655,0.565,2993.8,2991.8,0.10157612]
[1766072432854,0.46438023,2993.7,2992.1,3.34211066]
[1766072433053,2.9227,2993.3,2991.9,3.90734342]
[1766072433276,4.3787,2992.8,2992.3,3.34180334]
[1766072433480,4.3787,2992.8,2992.0,0.565]
[1766072433770,4.3787,2992.8,2992.1,0.565]
[1766072433943,4.3787,2993.2,2992.1,0.565]
[1766072434566,1.456,2993.1,2992.1,0.565]
[1766072434740,4.3787,2992.8,2992.1,0.72497154]
[1766072434949,4.9437,2993.3,2992.1,1.28997154]
[1766072435173,4.3787,2993.3,2992.1,1.28997154]
[1766072435447,4.3787,2993.8,2992.1,0.72497154]
[1766072435671,0.564,2994.0,2992.1,0.72497154]
[1766072435892,4.3787,2993.5,2992.3,10.0257327]
[1766072436058,4.3787,2993.5,2992.4,1.05897327]
[1766072436257,0.564,2994.0,2992.5,0.564]
[1766072436459,2.9227,2993.9,2992.4,1.05897327]
[1766072436642,0.564,2994.0,2992.4,1.05897327]
[1766072436643,2.9227,2993.5,2992.4,1.05897327]
[1766072436843,0.564,2994.0,2992.5,0.564]
[1766072436844,4.3787,2993.4,2992.5,0.564]
[1766072437071,4.3787,2993.4,2992.6,0.564]
[1766072437555,0.564,2994.0,2992.6,0.564]
[1766072437882,0.564,2994.0,2992.7,3.90543554]
[1766072438064,2.9227,2993.5,2992.8,0.39054355]
[1766072438378,1.456,2993.2,2991.7,9.42844602]
[1766072438561,4.3787,2993.4,2991.7,0.10157612]
[1766072438767,2.9227,2993.2,2992.2,3.34198657]
[1766072438949,2.9227,2993.1,2992.0,0.564]
[1766072439151,2.9227,2993.1,2992.2,3.34194352]
[1766072439349,4.3787,2993.1,2992.2,0.72480442]
[1766072439550,4.3787,2993.1,2992.0,0.564]
[1766072439551,0.002,2993.4,2992.0,0.564]
[1766072439745,0.002,2993.4,2992.2,3.34199015]
[1766072439945,1.456,2993.2,2992.2,0.564]
[1766072440151,4.3787,2993.0,2992.2,0.564]
[1766072440580,2.9227,2992.9,2992.0,6.68448752]
[1766072440751,4.3787,2992.9,2992.1,0.564]
[1766072440950,4.3787,2992.9,2992.2,0.563]
[1766072441346,0.002,2993.4,2992.2,1.28774875]
[1766072441347,4.3807,2993.4,2992.2,1.28774875]
[1766072441653,1.456,2992.9,2992.2,1.28774875]
[1766072441891,4.3787,2992.9,2992.1,0.563]
[1766072442060,4.3787,2992.9,2992.1,3.90506976]
[1766072442261,2.9227,2992.8,2992.1,3.90506976]
[1766072442471,2.9227,2992.8,2992.1,7.24720404]
[1766072442685,2.9227,2992.8,2992.1,3.90506976]
[1766072442884,2.9227,2992.8,2992.1,0.563]
[1766072443089,1.389,2992.4,2991.0,0.001]
[1766072443386,0.563,2992.3,2991.1,0.563]
[1766072443684,0.563,2992.3,2991.0,0.001]
[1766072443685,2.8117,2991.8,2991.0,0.001]
[1766072443858,4.2007,2991.6,2991.0,0.001]
[1766072444066,4.2007,2991.6,2991.0,3.34436342]
[1766072444578,2.8117,2992.2,2991.0,7.35650831]
[1766072444894,1.389,2992.7,2991.0,10.69987173]
[1766072445077,4.2007,2992.2,2991.1,0.563]
[1766072445269,0.563,2992.4,2991.0,6.68772684]
[1766072445582,2.8117,2991.9,2991.1,0.563]
[1766072445785,1.389,2991.9,2991.1,0.563]
[1766072445980,4.2007,2991.8,2991.0,0.001]
[1766072446489,4.2007,2991.8,2991.1,3.34320104]
[1766072446675,1.389,2991.6,2991.0,0.001]
[1766072446980,3.34203309,2992.2,2991.0,0.001]
[1766072447151,1.389,2991.7,2991.0,0.001]
[1766072447351,2.8117,2991.4,2991.0,0.001]
[1766072447553,2.8117,2991.2,2990.6,0.562]
[1766072447862,2.8117,2991.6,2990.3,0.001]
[1766072448197,2.8117,2991.3,2990.3,0.001]
[1766072448415,2.8117,2990.7,2989.9,0.001]
[1766072448696,0.33737,2991.2,2989.9,0.001]
[1766072448697,2.8117,2990.5,2989.9,0.001]
[1766072449074,0.562,2990.9,2989.9,0.001]
[1766072449075,1.389,2990.4,2989.9,0.001]
[1766072449270,2.8117,2990.3,2989.9,0.001]
[1766072449478,1.389,2990.7,2989.2,0.10157612]
[1766072449800,0.562,2990.9,2989.1,0.001]
[1766072449964,2.8117,2990.1,2989.1,0.001]
[1766072450172,4.2007,2990.0,2989.1,0.001]
[1766072450372,2.8117,2990.7,2989.1,0.001]
[1766072450566,4.2007,2990.5,2989.1,0.001]
[1766072450792,4.2007,2990.5,2989.1,0.10257612]
[1766072450994,0.562,2990.8,2989.2,9.30847465]
[1766072451168,1.389,2991.8,2989.7,9.00454677]
[1766072451498,4.2007,2991.6,2989.9,0.50708012]
[1766072451664,0.562,2991.8,2989.9,0.50708012]
[1766072451665,0.562,2991.8,2990.0,0.562]
[1766072451865,4.2007,2991.7,2990.0,0.562]
[1766072452084,0.562,2991.8,2990.1,6.6887395]
[1766072452265,2.8117,2991.5,2990.2,0.66887395]
[1766072452462,0.562,2991.8,2990.3,0.562]
[1766072452463,1.389,2991.0,2990.3,0.562]
[1766072452664,4.2007,2991.0,2990.2,1.23087395]
[1766072452867,0.562,2991.3,2990.0,3.34444113]
[1766072453066,2.8117,2991.1,2990.0,7.25092273]
[1766072453274,1.389,2991.2,2990.0,10.59540433]
[1766072453486,1.389,2991.5,2990.1,0.562]
[1766072453699,2.8117,2991.1,2990.0,6.68892273]
[1766072453866,2.8117,2991.1,2990.1,1.5653472]
[1766072453867,4.1999,2991.1,2990.1,1.5653472]
[1766072454067,4.1999,2991.1,2990.2,6.6885158]
[1766072454264,4.1999,2991.1,2990.3,0.562]
[1766072454711,0.562,2991.8,2990.2,6.6885158]
[1766072454912,1.389,2991.7,2990.2,6.6885158]
[1766072455114,1.389,2991.7,2990.3,0.8253863]
[1766072455471,1.389,2991.7,2990.3,0.92696242]
[1766072455880,0.562,2992.1,2990.6,0.405504]
[1766072456179,1.389,2992.2,2990.9,13.3739008]
[1766072456508,3.3737,2992.6,2991.0,0.10157612]
[1766072456705,4.7627,2992.6,2991.1,1.90854769]
[1766072456925,0.562,2992.6,2991.2,0.561]
[1766072457222,2.8117,2992.1,2991.1,1.34754769]
[1766072457369,1.389,2992.3,2990.9,6.6869504]
[1766072457575,2.8117,2992.1,2991.0,0.561]
[1766072457783,4.2007,2992.1,2991.1,0.561]
[1766072458391,0.562,2992.6,2991.2,10.02941961]
[1766072458896,4.2007,2992.5,2991.2,10.02941961]
[1766072459070,0.562,2992.6,2991.3,1.05904196]
[1766072459272,1.389,2992.2,2991.4,0.561]
[1766072459610,2.80770001,2991.9,2991.3,1.62004196]
[1766072459910,1.389,2992.0,2991.3,1.05904196]
[1766072460099,1.389,2992.0,2991.1,3.3432019]
[1766072460407,1.389,2992.0,2991.0,3.90425857]
[1766072460612,1.389,2992.0,2990.7,3.34361821]
[1766072460812,1.389,2992.0,2990.9,3.90443116]
[1766072460970,1.4282,2991.8,2990.3,0.8253863]
[1766072461173,1.4282,2991.6,2990.3,3.90510672]
[1766072461409,1.4282,2991.5,2990.3,3.90510672]
[1766072461713,4.2568,2991.3,2990.3,0.561]
[1766072461874,4.2568,2991.3,2990.0,0.10257612]
[1766072462077,2.8286,2991.1,2990.2,3.34418818]
[1766072462389,0.561,2991.6,2990.0,3.34538865]
[1766072462390,0.46438023,2991.4,2990.0,0.001]
[1766072462603,1.02538023,2991.1,2989.3,0.001]
[1766072462810,2.8286,2990.6,2988.8,0.001]
[1766072463026,1.4282,2989.7,2988.8,0.001]
[1766072463171,2.8286,2989.4,2988.8,0.001]
[1766072463571,4.2568,2988.9,2988.1,0.001]
[1766072463771,0.33896,2989.4,2988.1,0.001]
[1766072463772,1.4282,2988.7,2988.1,0.001]
[1766072463979,0.33896,2989.4,2987.4,0.001]
[1766072463980,2.8286,2988.5,2987.4,0.001]
[1766072464217,2.8286,2988.0,2987.4,0.001]
[1766072464523,1.4282,2988.3,2986.9,0.00762659]
[1766072464706,4.2568,2987.8,2986.9,0.00762659]
[1766072464879,2.8286,2987.6,2986.9,0.00762659]
[1766072465210,1.4282,2987.9,2986.9,3.35557196]
[1766072465394,0.561,2988.3,2987.0,0.0334784]
[1766072465574,1.4282,2988.2,2986.9,3.34884859]
[1766072465775,0.561,2988.3,2987.0,0.33488486]
[1766072466209,1.4282,2988.2,2987.0,0.33488486]
[1766072466419,1.4282,2988.2,2987.1,3.34772856]
[1766072466576,1.9892,2988.8,2987.1,10.04318568]
[1766072466776,1.4282,2988.7,2987.1,6.69545712]
[1766072467010,4.2568,2988.4,2987.2,0.7030342]
[1766072467214,0.561,2988.3,2987.2,0.7030342]
[1766072467447,0.33896,2989.4,2987.2,0.7030342]
[1766072467655,0.561,2989.3,2987.4,0.50708012]
[1766072467813,3.3896,2989.2,2987.5,0.561]
[1766072468343,4.2568,2989.1,2987.6,10.60250487]
[1766072468548,0.561,2989.2,2987.8,0.405504]
[1766072469152,1.4282,2989.6,2988.1,0.10157612]
[1766072469446,4.2568,2989.4,2988.2,0.561]
[1766072469644,0.561,2989.7,2987.7,2.03171084]
[1766072469645,1.4282,2989.2,2987.7,1.16182661]
[1766072469955,2.8286,2988.3,2987.2,4.05064218]
[1766072470252,0.561,2988.4,2987.2,0.561]
[1766072470414,0.561,2988.4,2987.4,3.34735249]
[1766072470620,4.8178,2988.8,2987.3,10.04251329]
[1766072471544,0.561,2988.8,2987.3,10.04251329]
[1766072471745,0.561,2989.4,2987.7,0.405504]
[1766072471916,0.561,2989.4,2987.8,1.49365666]
[1766072472118,4.2568,2989.6,2988.1,0.10157612]
[1766072472319,0.561,2989.8,2988.3,6.69276846]
[1766072472647,4.1677,2989.5,2988.4,0.561]
[1766072472946,1.3775,2989.7,2988.2,3.34646323]
[1766072473158,2.7902,2989.2,2987.8,0.93265666]
[1766072473447,2.7902,2988.8,2987.8,3.34692525]
[1766072473648,0.46438023,2988.9,2987.1,0.001]
[1766072473850,0.46438023,2988.9,2987.1,3.34872378]
[1766072474147,0.561,2989.1,2986.1,0.10157612]
[1766072474148,2.7902,2988.4,2986.1,0.10157612]
[1766072474350,0.10157612,2989.5,2986.4,3.34843187]
[1766072474517,1.3775,2988.8,2986.8,0.561]
[1766072474715,4.1677,2988.6,2986.8,0.561]
[1766072474953,0.561,2988.7,2986.5,0.10157612]
[1766072475121,0.561,2988.7,2986.3,19.06851484]
[1766072475122,2.7902,2988.4,2986.4,0.561]
[1766072475318,0.41677,2988.3,2986.4,9.48206258]
[1766072475551,2.7902,2988.2,2986.5,0.46438023]
[1766072475752,1.3775,2987.9,2986.3,6.69725076]
[1766072476047,2.7902,2987.5,2986.4,0.561]
[1766072476368,3.3512,2988.1,2986.5,6.69680226]
[1766072476525,3.3512,2988.1,2986.5,10.04520339]
[1766072476949,4.7287,2988.1,2986.5,10.04520339]
[1766072477161,1.03387,2988.1,2986.5,10.04520339]
[1766072477363,4.1677,2987.8,2986.5,6.69680226]
[1766072477550,0.19385,2989.6,2987.0,9.0226387]
[1766072477757,2.7902,2989.3,2987.8,0.405504]
[1766072478074,4.1677,2989.1,2987.8,0.561]
[1766072478292,0.561,2989.2,2987.9,10.04049666]
[1766072478437,0.002,2988.9,2988.0,1.06014967]
[1766072478637,0.0012,2988.9,2988.0,1.62114967]
[1766072478878,1.3787,2988.9,2988.0,1.06014967]
[1766072479062,0.0012,2988.9,2987.8,10.60183269]
[1766072479876,2.7902,2989.1,2987.8,10.04083269]
[1766072479877,2.7874,2989.1,2987.8,10.04083269]
[1766072480047,1.3775,2989.2,2987.9,0.561]
[1766072480257,0.50708012,2990.5,2987.9,0.561]
[1766072480258,1.3775,2990.0,2988.4,10.03881675]
[1766072480456,3.3438973,2990.6,2988.4,10.03881675]
[1766072480457,1.3775,2991.5,2988.9,0.10157612]
[1766072480761,0.19125802,2991.7,2989.6,8.92106258]
[1766072480762,1.3775,2991.3,2989.6,8.92106258]
[1766072480947,1.3775,2991.3,2989.7,0.561]